fUSD/lending_fUSD_20260318
["ID","MTS","AMOUNT","RATE_DAILY","PERIOD"]
[408537087,1773858640559,-228.0,0.00015443,2]
[408537088,1773858640567,-500.0,0.00015474,2]
[408537089,1773858640576,-151.0,0.00015474,2]
[408537090,1773858640585,-350.0,0.00015494,3]
[408537091,1773858640594,-400.0,0.000155,5]
[408537092,1773858640604,-154.10725797,0.00015517,2]
[408537093,1773858640613,-151.0,0.00015529,2]
[408537094,1773858640623,-424.80293564,0.0001554,2]
[408537095,1773858640632,-823.89516258,0.0001555,2]
[408537096,1773858640642,-228.0,0.00015573,2]
[408537097,1773858640654,-151.0,0.00015584,2]
[408537098,1773858640663,-400.0,0.000156,5]
[408537099,1773858640672,-2000.0,0.000156,2]
[408537100,1773858640681,-151.0,0.00015639,2]
[408537101,1773858640691,-14775.67890073,0.00015656,2]
[408537102,1773858640701,-2775.35226037,0.0001568,2]
[408537103,1773858640711,-656.77850225,0.00015693,2]
[408537104,1773858640721,-400.0,0.000157,5]
[408537105,1773858640731,-500.0,0.00015726,2]
[408537106,1773858640741,-1000.0,0.00015726,2]
[408537107,1773858640750,-1400.0,0.00015726,2]
[408537108,1773858640759,-197.66378783,0.00015747,2]
[408537109,1773858640768,-181.08010149,0.00015747,2]
[408537110,1773858640778,-451.92,0.00015748,2]
[408537111,1773858640788,-160.0,0.0001575,2]
[408537112,1773858640797,-979.16666667,0.0001575,2]
[408537113,1773858640807,-2000.0,0.00015778,2]
[408537114,1773858640816,-400.0,0.000158,5]
[408537115,1773858640826,-1000.0,0.00015817,2]
[408537116,1773858640835,-1000.0,0.00015817,2]
[408537117,1773858640844,-1000.0,0.00015817,2]
[408537118,1773858640853,-825.606,0.00015817,2]
[408537119,1773858640863,-1336.8925829,0.0001584,2]
[408537120,1773858640872,-907.23910032,0.00015856,2]
[408537121,1773858640882,-200.0,0.00015872,2]
[408537122,1773858640892,-159.65926722,0.00015873,2]
[408537123,1773858640901,-350.0,0.00015875,2]
[408537124,1773858640910,-907.2391003,0.00015878,2]
[408537125,1773858640919,-433.0,0.00015885,2]
[408537126,1773858640929,-2000.0,0.0001589,2]
[408537127,1773858640939,-1260.0,0.00015899,2]
[408537128,1773858640948,-927.389,0.00015899,2]
[408537129,1773858640957,-1215.0,0.00015899,2]
[408537130,1773858640967,-1344.0,0.00015899,2]
[408537131,1773858640977,-3512.0,0.00015899,2]
[408537132,1773858640987,-6831.85231635,0.000159,3]
[408537133,1773858640996,-10000.0,0.000159,2]
[408537134,1773858641004,-424.80293564,0.000159,2]
[408537135,1773858641014,-738.0,0.000159,5]
[408537136,1773858641027,-200.30412454,0.000159,2]
[408537137,1773858641041,-14775.67890073,0.000159,2]
[408537138,1773858641052,-33898.22078705,0.000159,2]
[408537139,1773858641062,-907.2391003,0.000159,2]
[408537140,1773858641073,-2714.0,0.000159,5]
[408537141,1773858641082,-2375.0,0.000159,5]
[408537142,1773858641093,-200.0,0.00015935,2]
[408537143,1773858641104,-51585.4418869,0.00015936,2]
[408537144,1773858641115,-143011.092911,0.00015936,2]
[408537145,1773858641126,-3393.301194,0.00015936,2]
[408537146,1773858641136,-972.1976812,0.00015936,2]
[408537147,1773858641147,-45982.6133037,0.00015936,2]
[408537148,1773858641159,-3855.13087091,0.00015956,2]
[408537149,1773858641168,-303.14374679,0.00015973,2]
[408537150,1773858641177,-164.62600278,0.00015973,2]
[408537151,1773858641187,-500.0,0.00015973,2]
[408537152,1773858641196,-161.50794753,0.00015973,2]
[408537153,1773858641206,-500.0,0.00015973,2]
[408537154,1773858641215,-500.0,0.00015973,2]
[408537155,1773858641227,-500.0,0.00015973,2]
[408537156,1773858641238,-500.0,0.00015973,2]
[408537157,1773858641248,-161.75571014,0.00015973,2]
[408537158,1773858641259,-500.0,0.00015973,2]
[408537159,1773858641268,-500.20355798,0.00015973,2]
[408537160,1773858641279,-500.0,0.00015973,2]
[408537161,1773858641289,-164.40138988,0.00015973,2]
[408537162,1773858641298,-500.0,0.00015973,2]
[408537163,1773858641308,-500.0,0.00015973,2]
[408537164,1773858641317,-500.0,0.00015973,2]
[408537165,1773858641326,-500.0,0.00015973,2]
[408537166,1773858641337,-500.0,0.00015973,2]
[408537167,1773858641346,-401.96832496,0.00015973,2]
[408537168,1773858641356,-526.34198136,0.00015973,2]
[408537169,1773858641365,-177.88795057,0.00015973,2]
[408537170,1773858641374,-210.44909634,0.00015973,2]
[408537171,1773858641384,-382.43871643,0.00015973,2]
[408537172,1773858641393,-500.0,0.00015973,2]
[408537173,1773858641402,-500.0,0.00015973,2]
[408537174,1773858641412,-500.0,0.00015973,2]
[408537175,1773858641421,-500.0,0.00015973,2]
[408537176,1773858641430,-159.10669946,0.00015973,2]
[408537177,1773858641440,-187.47382393,0.00015973,2]
[408537178,1773858641451,-500.0,0.00015973,2]
[408537179,1773858641461,-500.0,0.00015973,2]
[408537180,1773858641470,-500.38785834,0.00015973,2]
[408537181,1773858641480,-500.0,0.00015973,2]
[408537182,1773858641490,-500.0,0.00015973,2]
[408537183,1773858641500,-500.0,0.00015973,2]
[408537184,1773858641509,-500.0,0.00015973,2]
[408537185,1773858641523,-517.7204554,0.00015973,2]
[408537186,1773858641531,-500.0,0.00015973,2]
[408537187,1773858641542,-502.73508484,0.00015973,2]
[408537188,1773858641552,-500.0,0.00015973,2]
[408537189,1773858641562,-336.94661194,0.00015973,2]
[408537190,1773858641571,-500.0,0.00015973,2]
[408537191,1773858641581,-500.0,0.00015973,2]
[408537192,1773858641591,-500.0,0.00015973,2]
[408537193,1773858641602,-160.12298016,0.00015973,2]
[408537194,1773858641614,-517.4992797,0.00015973,2]
[408537195,1773858641625,-163.39305656,0.00015973,2]
[408537196,1773858641634,-166.41691617,0.00015973,2]
[408537197,1773858641644,-168.31736846,0.00015973,2]
[408537198,1773858641653,-500.0,0.00015973,2]
[408537199,1773858641663,-210.47030904,0.00015973,2]
[408537200,1773858641672,-191.09594132,0.00015973,2]
[408537201,1773858641682,-514.55725178,0.00015973,2]
[408537202,1773858641692,-500.0,0.00015973,2]
[408537203,1773858641702,-500.0,0.00015973,2]
[408537204,1773858641712,-500.0,0.00015973,2]
[408537205,1773858641721,-500.0,0.00015973,2]
[408537206,1773858641731,-500.0,0.00015973,2]
[408537207,1773858641742,-500.42157714,0.00015973,2]
[408537208,1773858641751,-500.0,0.00015973,2]
[408537209,1773858641761,-500.0,0.00015973,2]
[408537210,1773858641773,-162.69740995,0.00015973,2]
[408537211,1773858641783,-163.19287474,0.00015973,2]
[408537212,1773858641793,-500.0,0.00015973,2]
[408537213,1773858641802,-500.0,0.00015973,2]
[408537214,1773858641812,-500.0,0.00015973,2]
[408537215,1773858641821,-500.0,0.00015973,2]
[408537216,1773858641833,-500.0,0.00015973,2]
[408537217,1773858641842,-500.0,0.00015973,2]
[408537218,1773858641851,-380.30178366,0.00015973,2]
[408537219,1773858641861,-500.0,0.00015973,2]
[408537220,1773858641870,-163.96638651,0.00015973,2]
[408537221,1773858641879,-500.0,0.00015973,2]
[408537222,1773858641888,-500.0,0.00015973,2]
[408537223,1773858641898,-500.0,0.00015973,2]
[408537224,1773858641907,-489.56124248,0.00015973,2]
[408537225,1773858641917,-500.0,0.00015973,2]
[408537226,1773858641926,-500.0,0.00015973,2]
[408537227,1773858641936,-200.0,0.00015999,2]
[408537228,1773858641945,-222.84991943,0.00015999,2]
[408537229,1773858641954,-528965.3447322,0.00016,2]
[408537239,1773858642899,-1754.56704307,0.00015899,2]
[408537250,1773858645399,-4250.43295693,0.00015899,2]
[408537251,1773858645408,-7132.43420613,0.00016,2]
[408537252,1773858645424,-7031.11170377,0.00016,2]
[408537257,1773858646082,-11776.5262582,0.00016,2]
[408537258,1773858646130,-576.71314428,0.00016,2]
[408537259,1773858763310,10000.0,0.00030137,120]
[408537260,1773858772810,10000.0,0.00030137,120]
[408537261,1773858780120,10000.0,0.00030137,120]
[408537262,1773858787469,10000.0,0.00030137,120]
[408537263,1773858797770,10000.0,0.00030137,120]
[408537264,1773858807553,10000.0,0.00030137,120]
[408537265,1773858816444,10000.0,0.00030137,120]
[408537266,1773858828019,10000.0,0.00030137,120]
[408537267,1773858838176,10000.0,0.00030137,120]
[408537268,1773858848407,10000.0,0.00030137,120]
[408537269,1773858866215,250.04,0.00030137,120]
[408537281,1773859831473,-242.0,0.00011224,2]
[408537282,1773859831483,-164.69,0.00011224,2]
[408537283,1773859831492,-250.0,0.00012347,2]
[408537284,1773859831501,-212.42,0.000126,2]
[408537285,1773859831511,-1852.42,0.00012737,2]
[408537286,1773859831520,-177.70877478,0.00013144,2]
[408537287,1773859831531,-400.0,0.00013244,4]
[408537288,1773859831540,-200.0,0.00013775,2]
[408537289,1773859831550,-222.84991943,0.00013775,2]
[408537290,1773859831560,-1200.0,0.00013858,2]
[408537291,1773859831571,-150.0,0.00013859,2]
[408537292,1773859831591,-300.0,0.00013859,2]
[408537293,1773859831602,-302.0,0.00013859,2]
[408537294,1773859831612,-500.0,0.0001386,2]
[408537295,1773859831622,-500.0,0.0001386,2]
[408537296,1773859831632,-500.0,0.0001386,2]
[408537297,1773859831642,-500.0,0.0001386,2]
[408537298,1773859831651,-500.0,0.0001386,2]
[408537299,1773859831661,-1015.14138384,0.0001386,2]
[408537300,1773859831671,-250.0,0.0001386,2]
[408537301,1773859831681,-256.21511094,0.0001386,2]
[408537302,1773859831693,-493.87374609,0.00014082,2]
[408537303,1773859831706,-106.12625391,0.00014082,2]
[408537304,1773859831716,-153.9062334,0.00014232,2]
[408537305,1773859831735,-322.59321388,0.00014232,2]
[408537307,1773859831750,-445.76046939,0.00014232,2]
[408537310,1773859831769,-948.01008333,0.00014232,2]
[408537312,1773859831779,-2677.57934353,0.00014297,2]
[408537314,1773859831791,-696.98065647,0.00014297,2]
[408537316,1773859831800,-150.0,0.00014321,2]
[408537318,1773859831809,-500.28,0.00014342,2]
[408537320,1773859831818,-85.35464543,0.00014356,2]
[408537321,1773859831830,-714.64535457,0.00014356,2]
[408537322,1773859831839,-1300.0,0.00014356,2]
[408537323,1773859831850,-9999.99,0.00014504,2]
[408537324,1773859831859,-9896.48781244,0.00014504,2]
[408537325,1773859831871,-19473.96218756,0.00014504,2]
[408537326,1773859831880,-3271.15,0.0001451,2]
[408537327,1773859831889,-422.80387737,0.00014513,2]
[408537328,1773859831898,-150.0,0.00014643,2]
[408537329,1773859831908,-904.16,0.00014788,2]
[408537330,1773859831917,-255.0,0.00014982,2]
[408537331,1773859831926,-425.0,0.00014991,2]
[408537332,1773859831935,-250.0,0.00015,2]
[408537333,1773859831944,-425.0,0.00015149,2]
[408537334,1773859831953,-420.0,0.00015185,2]
[408537335,1773859831962,-500.0,0.00015199,2]
[408537336,1773859831972,-500.0,0.00015199,2]
[408537337,1773859831981,-500.0,0.00015199,2]
[408537338,1773859831991,-250.0,0.00015199,2]
[408537339,1773859832000,-500.0,0.00015199,2]
[408537340,1773859832010,-250.0,0.00015199,2]
[408537341,1773859832019,-500.0,0.00015199,2]
[408537342,1773859832030,-250.0,0.00015199,2]
[408537343,1773859832039,-500.0,0.00015199,2]
[408537344,1773859832048,-250.0,0.00015199,2]
[408537345,1773859832058,-500.0,0.00015199,2]
[408537346,1773859832067,-250.0,0.00015199,2]
[408537347,1773859832076,-250.0,0.00015199,2]
[408537348,1773859832085,-500.0,0.00015199,2]
[408537349,1773859832094,-250.0,0.00015199,2]
[408537350,1773859832103,-500.0,0.00015199,2]
[408537351,1773859832112,-250.0,0.00015199,2]
[408537352,1773859832122,-500.0,0.00015199,2]
[408537353,1773859832131,-248.1,0.00015199,2]
[408537354,1773859832140,-500.0,0.00015199,2]
[408537355,1773859832149,-529.53062425,0.00015199,2]
[408537356,1773859832158,-500.0,0.00015199,2]
[408537357,1773859832167,-350.0,0.00015235,2]
[408537358,1773859832177,-1680.0,0.00015244,2]
[408537359,1773859832187,-425.0,0.00015247,2]
[408537360,1773859832196,-166.66,0.00015251,2]
[408537361,1773859832206,-451.93,0.00015377,2]
[408537362,1773859832216,-442.9998746,0.00015409,2]
[408537363,1773859832225,-168.0,0.00015451,2]
[408537364,1773859832234,-600.0,0.00015452,2]
[408537365,1773859832243,-6797.46382111,0.00015461,2]
[408537366,1773859832253,-5566.02150567,0.0001551,2]
[408537367,1773859832265,-1231.44231542,0.0001551,2]
[408537368,1773859832277,-904.16,0.00015528,2]
[408537369,1773859832286,-4142.2444,0.00015554,2]
[408537370,1773859832295,-38063.46892544,0.00015554,2]
[408537371,1773859832306,-1483.02344022,0.00015554,2]
[408537376,1773859837920,-1411.3308817,0.00015554,2]
[408537377,1773859837931,-50635.51755264,0.00015554,2]
[408537378,1773859837941,-6797.46382109,0.00015559,2]
[408537379,1773859837950,-425.0,0.00015561,2]
[408537380,1773859837959,-1475.60250367,0.00015581,2]
[408537381,1773859837969,-154.10725798,0.00015593,2]
[408537382,1773859837978,-6797.46382109,0.00015607,2]
[408537383,1773859837988,-1475.60250365,0.00015627,2]
[408537384,1773859837997,-1946.7729151,0.00015654,2]
[408537385,1773859838007,-3558.4,0.00015654,2]
[408537386,1773859838016,-6797.46382109,0.00015656,2]
[408537387,1773859838025,-80823.45001052,0.00015661,2]
[408537411,1773859838570,-2748.70711041,0.00015661,2]
[408537413,1773859838583,-867.64246885,0.00015661,2]
[408537414,1773859838602,-35978.77511022,0.00015661,2]
[408537415,1773859838611,-1475.60250365,0.00015672,2]
[408537417,1773859838620,-2775.35226037,0.0001568,2]
[408537419,1773859838629,-292.158579,0.0001568,7]
[408537421,1773859838638,-236.922878,0.0001568,7]
[408537422,1773859838649,-1946.77291507,0.00015681,2]
[408537423,1773859838659,-3096.57333469,0.00015703,2]
[408537424,1773859838671,-357.0,0.00015703,2]
[408537425,1773859838682,-104.82666531,0.00015703,2]
[408537426,1773859838691,-6797.46382109,0.00015705,2]
[408537427,1773859838700,-247.7095136,0.00015709,2]
[408537428,1773859838712,-1699.06340147,0.00015709,2]
[408537429,1773859838721,-1475.60250365,0.00015718,2]
[408537430,1773859838731,-800.0,0.00015726,2]
[408537431,1773859838740,-1300.0,0.00015726,2]
[408537432,1773859838750,-979.16666667,0.00015734,2]
[408537433,1773859838759,-160.0,0.00015734,2]
[408537434,1773859838768,-1946.77291507,0.00015736,2]
[408537435,1773859838778,-500.0,0.00015741,2]
[408537436,1773859838787,-500.0,0.00015741,2]
[408537437,1773859838797,-500.0,0.00015741,2]
[408537438,1773859838806,-440.45763289,0.00015741,2]
[408537439,1773859838817,-500.0,0.00015741,2]
[408537440,1773859838827,-500.0,0.00015741,2]
[408537441,1773859838838,-500.0,0.00015741,2]
[408537442,1773859838849,-341.78195786,0.00015741,2]
[408537443,1773859838859,-251.85940591,0.00015741,2]
[408537444,1773859838870,-500.0,0.00015741,2]
[408537445,1773859838879,-500.0,0.00015741,2]
[408537446,1773859838889,-500.0,0.00015741,2]
[408537447,1773859838898,-500.0,0.00015741,2]
[408537448,1773859838909,-500.0,0.00015741,2]
[408537449,1773859838919,-500.0,0.00015741,2]
[408537450,1773859838931,-500.0,0.00015741,2]
[408537451,1773859838943,-500.0,0.00015741,2]
[408537452,1773859838952,-500.0,0.00015741,2]
[408537453,1773859838962,-500.0,0.00015741,2]
[408537454,1773859838971,-500.0,0.00015741,2]
[408537455,1773859838980,-500.0,0.00015741,2]
[408537456,1773859838989,-500.0,0.00015741,2]
[408537457,1773859838998,-500.0,0.00015741,2]
[408537458,1773859839007,-500.0,0.00015741,2]
[408537459,1773859839027,-500.0,0.00015741,2]
[408537460,1773859839037,-500.0,0.00015741,2]
[408537461,1773859839046,-500.0,0.00015741,2]
[408537462,1773859839056,-500.0,0.00015741,2]
[408537463,1773859839066,-500.0,0.00015741,2]
[408537464,1773859839076,-500.0,0.00015741,2]
[408537465,1773859839085,-500.0,0.00015741,2]
[408537466,1773859839095,-500.0,0.00015741,2]
[408537467,1773859839104,-500.0,0.00015741,2]
[408537468,1773859839114,-500.0,0.00015741,2]
[408537469,1773859839123,-500.0,0.00015741,2]
[408537470,1773859839133,-500.0,0.00015741,2]
[408537471,1773859839142,-500.0,0.00015741,2]
[408537472,1773859839151,-500.0,0.00015741,2]
[408537473,1773859839161,-500.0,0.00015741,2]
[408537474,1773859839170,-500.0,0.00015741,2]
[408537475,1773859839180,-500.0,0.00015741,2]
[408537476,1773859839190,-500.0,0.00015741,2]
[408537477,1773859839199,-296.00872173,0.00015743,2]
[408537478,1773859839208,-222.46471526,0.00015743,2]
[408537479,1773859839217,-503.24277906,0.00015743,2]
[408537480,1773859839227,-115589.05161141,0.00015744,2]
[408537481,1773859839243,-286.372,0.00015744,2]
[408537484,1773859839722,-500.0,0.00015741,2]
[408537485,1773859839732,-194.08404718,0.00015741,2]
[408537486,1773859839742,-500.0,0.00015741,2]
[408537487,1773859839752,-500.0,0.00015741,2]
[408537488,1773859839762,-500.0,0.00015741,2]
[408537489,1773859839771,-500.0,0.00015741,2]
[408537490,1773859839782,-500.0,0.00015741,2]
[408537491,1773859839791,-500.0,0.00015741,2]
[408537492,1773859839801,-500.0,0.00015741,2]
[408537493,1773859839810,-500.0,0.00015741,2]
[408537494,1773859839820,-500.0,0.00015741,2]
[408537495,1773859839829,-925827.76122319,0.00015744,2]
[408537496,1773859839841,-557.94431981,0.00015744,2]
[408537497,1773859840193,-23308.6696544,0.00015744,2]
[408537521,1773859842603,-4.28520512,0.00015744,2]
[408537522,1773859842778,-500.38516271,0.00015744,2]
[408537533,1773859845495,-12184.38483862,0.00015744,2]
[408537534,1773859845507,-676.87939562,0.00015744,2]
[408537535,1773859845551,-1345.00163473,0.00015744,2]
[408537536,1773859845562,-1256.91365521,0.00015744,2]
[408537537,1773859845574,-2988.92617273,0.00015744,2]
[408537538,1773859845657,-11000.0,0.00015744,2]
[408537539,1773859845865,-4666.0315676,0.00015744,2]
[408537540,1773859845876,-2988.92617273,0.00015744,2]
[408537556,1773860468448,10000.0,7.945e-05,2]
[408537557,1773860468470,0.01,7.945e-05,2]
[408537561,1773860959151,-1307.11,0.00012,2]
[408537562,1773860959172,-386.54171684,0.00012,2]
[408537563,1773860959193,-248.0,0.00012,2]
[408537564,1773860959213,-248.52617702,0.0001319,2]
[408537565,1773860959238,-3360.02290214,0.000132,2]
[408537570,1773861031761,-342.965,0.000132,2]
[408537571,1773861031776,-525.79675041,0.000132,2]
[408537572,1773861031836,-245.16939079,0.000132,2]
[408537573,1773861031848,-250.0,0.000132,2]
[408537574,1773861031861,-51.52970921,0.000132,2]
[408537576,1773861031893,-206.47029079,0.000132,2]
[408537578,1773861031904,-166.66,0.0001365,2]
[408537580,1773861031915,-600.0,0.00013819,2]
[408537582,1773861031927,-600.0,0.00013819,2]
[408537585,1773861031938,-600.0,0.00013819,2]
[408537587,1773861031949,-166.66,0.00013937,2]
[408537589,1773861031960,-600.0,0.00014082,2]
[408537591,1773861031971,-166.66,0.00014225,2]
[408537593,1773861031982,-500.0,0.00014243,2]
[408537596,1773861031993,-1294.17,0.00014243,2]
[408537598,1773861032004,-193.0,0.00014354,2]
[408537600,1773861032016,-1200.0,0.00014355,2]
[408537602,1773861032027,-1100.0,0.00014356,2]
[408537604,1773861032039,-800.0,0.00014356,2]
[408537607,1773861032050,-325.4268,0.00014404,2]
[408537609,1773861032061,-2000.0,0.00014447,2]
[408537611,1773861032075,-166.66,0.00014512,2]
[408537613,1773861032087,-600.0,0.0001452,2]
[408537615,1773861032099,-300.0,0.0001452,2]
[408537618,1773861032112,-365.3046169,0.0001452,2]
[408537620,1773861032123,-975.74423369,0.00014642,2]
[408537621,1773861032135,-262.93,0.00014788,2]
[408537622,1773861032146,-200.0,0.00014789,2]
[408537623,1773861032157,-166.66,0.000148,2]
[408537624,1773861032169,-150.0,0.00014826,2]
[408537625,1773861032180,-300.0,0.00015084,2]
[408537626,1773861032191,-500.0,0.00015085,2]
[408537627,1773861032203,-532.75297208,0.00015085,2]
[408537628,1773861032214,-151.0,0.00015085,2]
[408537629,1773861032227,-151.0,0.00015085,2]
[408537630,1773861032238,-151.0,0.00015085,2]
[408537631,1773861032249,-151.0,0.00015085,2]
[408537632,1773861032260,-500.0,0.00015085,2]
[408537633,1773861032271,-500.0,0.00015085,2]
[408537634,1773861032282,-529.17570437,0.00015085,2]
[408537635,1773861032293,-200.0,0.00015085,2]
[408537636,1773861032304,-151.0,0.00015085,2]
[408537637,1773861032316,-151.0,0.00015085,2]
[408537638,1773861032327,-151.0,0.00015085,2]
[408537639,1773861032338,-151.0,0.00015085,2]
[408537640,1773861032349,-166.66,0.00015087,2]
[408537641,1773861032360,-1215.0,0.00015094,2]
[408537642,1773861032372,-927.389,0.00015094,2]
[408537643,1773861032383,-197.66378783,0.0001516,2]
[408537644,1773861032394,-181.08010149,0.0001516,2]
[408537645,1773861032405,-151.0,0.0001516,2]
[408537646,1773861032416,-5888.0,0.00015192,2]
[408537647,1773861032427,-151.0,0.00015215,2]
[408537648,1773861032438,-426.0,0.00015223,2]
[408537649,1773861032448,-426.0,0.00015281,2]
[408537650,1773861032459,-426.0,0.00015308,2]
[408537651,1773861032471,-2000.0,0.000154,2]
[408537652,1773861032482,-600.0,0.00015452,2]
[408537653,1773861032493,-210.0,0.00015481,2]
[408537654,1773861032504,-29676.9189584,0.00015481,2]
[408537655,1773861032515,-2024.45,0.00015507,2]
[408537656,1773861032526,-177.53400092,0.00015507,2]
[408537657,1773861032537,-4412.08472847,0.00015542,2]
[408537658,1773861032548,-2718.98552849,0.00015543,2]
[408537659,1773861032558,-986.38296663,0.00015544,2]
[408537660,1773861032569,-630.0,0.00015562,2]
[408537661,1773861032582,-2718.98552843,0.00015583,2]
[408537662,1773861032593,-1336.8925829,0.0001559,2]
[408537663,1773861032605,-154.10725798,0.00015593,2]
[408537664,1773861032616,-986.38296659,0.00015595,2]
[408537665,1773861032629,-6005.0,0.00015619,2]
[408537666,1773861032641,-3756.0,0.00015619,2]
[408537667,1773861032654,-2718.98552843,0.00015622,2]
[408537668,1773861032666,-426.0,0.00015622,2]
[408537669,1773861032678,-200.0,0.00015633,2]
[408537670,1773861032689,-1000.0,0.00015643,2]
[408537671,1773861032700,-500.0,0.00015643,2]
[408537672,1773861032714,-500.0,0.00015643,2]
[408537673,1773861032727,-500.0,0.00015643,2]
[408537674,1773861032740,-500.0,0.00015643,2]
[408537675,1773861032754,-500.0,0.00015643,2]
[408537676,1773861032765,-500.0,0.00015643,2]
[408537677,1773861032778,-500.0,0.00015643,2]
[408537678,1773861032789,-500.0,0.00015643,2]
[408537679,1773861032812,-500.0,0.00015643,2]
[408537680,1773861032828,-500.0,0.00015643,2]
[408537681,1773861032843,-500.0,0.00015643,2]
[408537682,1773861032857,-500.0,0.00015643,2]
[408537683,1773861032870,-500.0,0.00015643,2]
[408537684,1773861032883,-500.0,0.00015643,2]
[408537685,1773861032897,-500.0,0.00015643,2]
[408537686,1773861032909,-500.0,0.00015643,2]
[408537687,1773861032922,-500.0,0.00015643,2]
[408537688,1773861032937,-500.0,0.00015643,2]
[408537689,1773861032949,-500.0,0.00015643,2]
[408537690,1773861032964,-500.0,0.00015643,2]
[408537691,1773861032976,-500.0,0.00015643,2]
[408537692,1773861032991,-500.0,0.00015643,2]
[408537693,1773861033004,-500.0,0.00015643,2]
[408537694,1773861033018,-500.0,0.00015643,2]
[408537695,1773861033031,-500.0,0.00015643,2]
[408537696,1773861033045,-500.0,0.00015643,2]
[408537697,1773861033058,-500.0,0.00015643,2]
[408537698,1773861033070,-500.0,0.00015643,2]
[408537699,1773861033082,-500.0,0.00015643,2]
[408537700,1773861033094,-500.0,0.00015643,2]
[408537701,1773861033107,-500.0,0.00015643,2]
[408537702,1773861033121,-500.0,0.00015643,2]
[408537703,1773861033133,-500.0,0.00015643,2]
[408537704,1773861033144,-500.0,0.00015643,2]
[408537705,1773861033157,-500.0,0.00015643,2]
[408537706,1773861033166,-500.0,0.00015643,2]
[408537707,1773861033176,-500.0,0.00015643,2]
[408537708,1773861033186,-500.0,0.00015643,2]
[408537709,1773861033196,-500.0,0.00015643,2]
[408537710,1773861033206,-500.0,0.00015643,2]
[408537711,1773861033215,-500.0,0.00015643,2]
[408537712,1773861033224,-500.0,0.00015643,2]
[408537713,1773861033233,-500.0,0.00015643,2]
[408537714,1773861033546,-500.0,0.00015643,2]
[408537715,1773861033574,-500.0,0.00015643,2]
[408537716,1773861033591,-608.96824228,0.00015643,2]
[408537717,1773861033606,-500.0,0.00015643,2]
[408537718,1773861033615,-500.0,0.00015643,2]
[408537719,1773861033625,-500.0,0.00015643,2]
[408537720,1773861033634,-500.0,0.00015643,2]
[408537721,1773861033644,-500.0,0.00015643,2]
[408537722,1773861033653,-500.0,0.00015643,2]
[408537723,1773861033663,-500.0,0.00015643,2]
[408537724,1773861033672,-500.0,0.00015643,2]
[408537725,1773861033682,-500.0,0.00015643,2]
[408537726,1773861033691,-500.0,0.00015643,2]
[408537727,1773861033701,-500.0,0.00015643,2]
[408537728,1773861033714,-500.0,0.00015643,2]
[408537729,1773861033723,-500.0,0.00015643,2]
[408537730,1773861033733,-500.0,0.00015643,2]
[408537731,1773861033742,-500.0,0.00015643,2]
[408537732,1773861033753,-500.0,0.00015643,2]
[408537733,1773861033763,-500.0,0.00015643,2]
[408537734,1773861033772,-500.0,0.00015643,2]
[408537735,1773861033783,-500.0,0.00015643,2]
[408537736,1773861033792,-500.0,0.00015643,2]
[408537737,1773861033801,-500.0,0.00015643,2]
[408537738,1773861033810,-500.0,0.00015643,2]
[408537739,1773861033819,-500.0,0.00015643,2]
[408537740,1773861033828,-500.0,0.00015643,2]
[408537741,1773861033837,-500.0,0.00015643,2]